lending/lending_fUSD_20240111
["ID","MTS","AMOUNT","RATE_DAILY","PERIOD"]
[311275572,1705009848711,-150.0,0.00044202,2]
[311275574,1705009848721,-314.07,0.00044202,2]
[311275576,1705009848730,-150.0,0.00044202,2]
[311275578,1705009848739,-407.88,0.00044202,2]
[311275580,1705009848748,-150.0,0.00044202,2]
[311275582,1705009848757,-150.0,0.00044202,2]
[311275584,1705009848766,-314.07,0.00044202,2]
[311275586,1705009848777,-407.88,0.00044202,2]
[311275588,1705009848786,-314.07,0.00044202,2]
[311275590,1705009848795,-150.0,0.00044202,2]
[311275592,1705009848804,-150.0,0.00044202,2]
[311275594,1705009848813,-150.0,0.00044202,2]
[311275596,1705009848823,-407.88,0.00044202,2]
[311275598,1705009848832,-293.84,0.00044202,2]
[311275600,1705009848841,-159.47,0.00044202,2]
[311275602,1705009848850,-314.07,0.00044202,2]
[311275604,1705009848859,-150.0,0.00044202,2]
[311275606,1705009848868,-293.84,0.00044202,2]
[311275608,1705009848877,-407.88,0.00044202,2]
[311275610,1705009848888,-150.0,0.00044202,2]
[311275612,1705009848897,-314.07,0.00044202,2]
[311275614,1705009848906,-807.51,0.00044202,2]
[311275616,1705009848916,-293.84,0.00044202,2]
[311275618,1705009848925,-150.0,0.00044202,2]
[311275620,1705009848934,-314.07,0.00044202,2]
[311275622,1705009848943,-314.07,0.00044202,2]
[311275624,1705009848952,-407.88,0.00044202,2]
[311275626,1705009848961,-293.84,0.00044202,2]
[311275628,1705009848970,-150.0,0.00044202,2]
[311275630,1705009848981,-314.07,0.00044202,2]
[311275632,1705009848990,-154.690788,0.00044203,7]
[311275634,1705009848999,-151.0,0.00044203,14]
[311275635,1705009849008,-1000.0,0.00044246,10]
[311275636,1705009849017,-500.0,0.00044286,14]
[311275637,1705009849027,-555.40112,0.00044298,8]
[311275638,1705009849036,-127354.27933147,0.000443,30]
[311275639,1705009849045,-151.0,0.000443,14]
[311275640,1705009849054,-151.0,0.000443,14]
[311275641,1705009849063,-742.59,0.000443,5]
[311275642,1705009849072,-742.59,0.000443,5]
[311275644,1705009849082,-742.59,0.000443,5]
[311275645,1705009849091,-742.59,0.000443,5]
[311275646,1705009849101,-742.59,0.000443,5]
[311275647,1705009849111,-742.59,0.000443,5]
[311275648,1705009849120,-742.59,0.000443,5]
[311275649,1705009849130,-742.59,0.000443,5]
[311275650,1705009849139,-742.59,0.000443,5]
[311275651,1705009849148,-742.59,0.000443,5]
[311275652,1705009849159,-742.59,0.000443,5]
[311275653,1705009849168,-742.59,0.000443,5]
[311275654,1705009849177,-742.59,0.000443,5]
[311275655,1705009849187,-742.59,0.000443,5]
[311275656,1705009849196,-742.59,0.000443,5]
[311275657,1705009849205,-742.59,0.000443,5]
[311275659,1705009849214,-742.59,0.000443,5]
[311275661,1705009849223,-742.59,0.000443,5]
[311275662,1705009849232,-742.59,0.000443,5]
[311275664,1705009849242,-742.59,0.000443,5]
[311275665,1705009849251,-164.83,0.00044329,30]
[311275667,1705009849260,-150.0,0.0004434,2]
[311275669,1705009849269,-150.0,0.00044361,30]
[311275671,1705009849279,-150.0,0.00044361,30]
[311275673,1705009849288,-550.0,0.00044383,7]
[311275675,1705009849298,-1250.0,0.00044383,10]
[311275676,1705009849307,-400.0,0.00044384,120]
[311275677,1705009849316,-350.0,0.00044384,120]
[311275678,1705009849326,-6550.586423,0.00044397,2]
[311275679,1705009849335,-777.40112,0.00044398,10]
[311275680,1705009849344,-14303.65,0.000444,7]
[311275681,1705009849354,-3703.55500812,0.000444,19]
[311275682,1705009849363,-561.2598583,0.000444,23]
[311275683,1705009849372,-2013.72,0.000444,2]
[311275684,1705009849381,-164.82885682,0.000444,11]
[311275685,1705009849390,-160.01,0.000444,10]
[311275687,1705009849399,-212.33,0.000444,10]
[311275689,1705009849408,-182.71,0.000444,10]
[311275691,1705009849417,-1044.56093257,0.000444,2]
[311275707,1705009849562,-543.574105,0.000444,2]
[311275710,1705009849572,-1076.70058318,0.000444,2]
[311275712,1705009849582,-561.25985825,0.00044406,23]
[311275714,1705009849591,-555.46,0.00044411,3]
[311275716,1705009849600,-561.25985825,0.00044413,23]
[311275718,1705009849609,-561.25985825,0.00044419,23]
[311275720,1705009849618,-1177.107307,0.00044419,30]
[311275721,1705009849628,-1582.465425,0.00044419,30]
[311275723,1705009849637,-342.230444,0.00044419,30]
[311275725,1705009849647,-2483.89328,0.00044419,30]
[311275727,1705009849656,-402.995543,0.00044419,30]
[311275729,1705009849665,-171.397115,0.00044419,30]
[311275731,1705009849674,-170.779749,0.00044419,30]
[311275733,1705009849684,-181.530769,0.00044419,30]
[311275735,1705009849693,-464.469855,0.00044419,30]
[311275738,1705009849703,-561.25985825,0.00044425,23]
[311275739,1705009849712,-561.25985825,0.00044431,23]
[311275742,1705009849721,-561.25985825,0.00044438,23]
[311275743,1705009849730,-561.25985825,0.00044444,23]
[311275745,1705009849740,-561.25985825,0.0004445,23]
[311275748,1705009849751,-155.6998557,0.00044463,30]
[311275750,1705009849760,-400.0,0.0004447,3]
[311275751,1705009849769,-2428.0,0.0004447,120]
[311275754,1705009849779,-828.0,0.0004447,120]
[311275755,1705009849788,-150.0,0.0004447,120]
[311275757,1705009849797,-154.0,0.0004447,120]
[311275759,1705009849806,-150.0,0.0004447,120]
[311275762,1705009849815,-150.0,0.0004447,120]
[311275764,1705009849826,-157.0,0.0004447,120]
[311275766,1705009849835,-2428.0,0.0004447,120]
[311275768,1705009849844,-828.0,0.0004447,120]
[311275770,1705009849853,-154.0,0.0004447,120]
[311275772,1705009849861,-150.0,0.0004447,120]
[311275774,1705009849871,-157.0,0.0004447,120]
[311275776,1705009849880,-151.0,0.00044479,14]
[311275778,1705009849889,-151.0,0.00044479,14]
[311275780,1705009849898,-23595.84458723,0.00044479,60]
[311275782,1705009849907,-27724.24355684,0.0004448,7]
[311275784,1705009849917,-2428.0,0.0004448,120]
[311275786,1705009849926,-828.0,0.0004448,120]
[311275788,1705009849935,-150.0,0.0004448,120]
[311275790,1705009849944,-150.0,0.0004448,120]
[311275792,1705009849954,-154.0,0.0004448,120]
[311275794,1705009849962,-150.0,0.0004448,120]
[311275796,1705009849972,-157.0,0.0004448,120]
[311275798,1705009849981,-284.0,0.0004448,120]
[311275799,1705009849991,-2428.0,0.0004448,120]
[311275801,1705009850000,-828.0,0.0004448,120]
[311275803,1705009850009,-154.0,0.0004448,120]
[311275805,1705009850019,-150.0,0.0004448,120]
[311275808,1705009850030,-157.0,0.0004448,120]
[311275809,1705009850040,-20083.0,0.0004449,3]
[311275812,1705009850050,-5103.17517953,0.0004449,2]
[311275814,1705009850060,-150.0,0.0004449,2]
[311275816,1705009850069,-204.30056541,0.0004449,7]
[311275818,1705009850079,-2428.0,0.0004449,120]
[311275820,1705009850088,-828.0,0.0004449,120]
[311275822,1705009850098,-150.0,0.0004449,120]
[311275824,1705009850107,-150.0,0.0004449,120]
[311275826,1705009850116,-154.0,0.0004449,120]
[311275827,1705009850126,-214.0,0.0004449,120]
[311275829,1705009850135,-150.0,0.0004449,120]
[311275832,1705009850145,-157.0,0.0004449,120]
[311275834,1705009850155,-150.0,0.0004449,120]
[311275835,1705009850165,-2428.0,0.0004449,120]
[311275837,1705009850175,-274.0,0.0004449,120]
[311275839,1705009850185,-828.0,0.0004449,120]
[311275841,1705009850195,-156.0,0.0004449,120]
[311275843,1705009850204,-154.0,0.0004449,120]
[311275845,1705009850214,-150.0,0.0004449,120]
[311275848,1705009850223,-157.0,0.0004449,120]
[311275850,1705009850233,-500.0,0.0004449,4]
[311275852,1705009850243,-500.0,0.0004449,4]
[311275853,1705009850252,-500.0,0.0004449,4]
[311275855,1705009850261,-500.0,0.0004449,4]
[311275857,1705009850271,-349.73416537,0.0004449,4]
[311275860,1705009850282,-151.0,0.0004449,7]
[311275861,1705009850291,-1685.08960263,0.00044498,10]
[311275864,1705009850301,-10334.68699807,0.000445,2]
[311275865,1705009850310,-2889489.63800977,0.000445,20]
[311275873,1705009850369,-1285.4348327,0.000445,20]
[311275881,1705009850566,-588.23033068,0.00028603,2]
[311275882,1705009850576,-197.71694514,0.00037287,4]
[311275883,1705009850587,-936.25729366,0.00037287,4]
[311275884,1705009850596,-219.34485506,0.00037287,4]
[311275885,1705009850605,-715.83784001,0.00037287,15]
[311275886,1705009850614,-19487.11273545,0.000445,20]
[311275887,1705009850633,-171.46402643,0.00034999,2]
[311275888,1705009850642,-8060.93983845,0.000445,20]
[311275889,1705009850654,-5854.63651781,0.000445,20]
[311275890,1705009850665,-8532.73699634,0.000445,20]
[311275891,1705009850678,-7038.09262125,0.000445,20]
[311275892,1705009850740,-602.27037356,0.00036999,4]
[311275893,1705009850750,-351.9285625,0.00036999,4]
[311275894,1705009850759,-323.4020548,0.00036999,4]
[311275895,1705009850770,-293.04117107,0.00036999,4]
[311275896,1705009850780,-188.14384339,0.00037287,4]
[311275897,1705009850789,-451.70278017,0.00041,7]
[311275898,1705009850798,-150.82652679,0.00041,7]
[311275899,1705009850808,-5636.9178025,0.000445,20]
[311275909,1705009851154,-322.3974793,0.00025,2]
[311275910,1705009851164,-155.0,0.00028603,2]
[311275911,1705009851174,-213.4225225,0.00028603,2]
[311275912,1705009851183,-336.92043028,0.00028603,2]
[311275913,1705009851193,-542.16085306,0.00028603,2]
[311275914,1705009851202,-161.55713034,0.00028603,2]
[311275915,1705009851211,-7232.04158452,0.00028603,2]
[311275916,1705009851238,3206.73649208,0.00022,2]
[311275917,1705009851254,-4433.03043977,0.00028603,2]
[311275918,1705009851264,-155.0,0.00028603,2]
[311275919,1705009851273,-482.31469063,0.00028603,2]
[311275920,1705009851284,-964.00509535,0.00036567,4]
[311275921,1705009851294,-150.0,0.00037556,2]
[311275922,1705009851305,-2963.86893895,0.00037561,2]
[311275923,1705009851553,-2278.38673422,0.00037561,2]
[311275924,1705009851562,-1093.89750418,0.00037698,4]
[311275925,1705009851573,-2209.43,0.00038612,2]
[311275926,1705009851583,-150.0,0.00038994,2]
[311275927,1705009851593,-462.3324194,0.00041,7]
[311275928,1705009851603,-3291.64435569,0.00041779,2]
[311275929,1705009851613,-292.34,0.00043381,2]
[311275930,1705009851623,-314.07,0.00044202,2]
[311275931,1705009851632,-41070.6459449,0.000445,20]
[311275932,1705009851645,-4823.83157253,0.000445,20]
[311275933,1705009851660,-625.78784407,0.000445,20]
[311275934,1705009851680,-155.0,0.0003,2]
[311275935,1705009851690,-303.37,0.000445,20]
[311275936,1705009851702,-690.60504577,0.000445,20]
[311275937,1705009851728,-7772.24526892,0.00024678,2]
[311275938,1705009851738,-2605.00040477,0.00028602,2]
[311275939,1705009851747,-26573.49670596,0.000445,20]
[311275940,1705009852042,155.0,0.00021854,2]
[311275941,1705009852519,5185.3168697,0.00021854,2]
[311275944,1705009910034,50499.59616864,0.00021854,2]
[311275945,1705009912359,500.0,0.00021854,2]
[311275946,1705009915414,155.0,0.00019669,2]
[311275947,1705009917927,1597.4364392,0.00017483,2]
[311275948,1705009924099,50499.59616864,0.00021854,2]
[311275949,1705009928062,527.17427812,0.00021853,2]
[311275950,1705009928359,212.66588082,0.00021854,2]
[311275951,1705009928690,300.0,0.00022426,2]
[311275952,1705009931412,155.0,0.00019669,2]
[311275953,1705009933953,1596.31809314,0.00017483,2]
[311275955,1705009940030,50499.59616864,0.00021854,2]
[311275956,1705009940077,629.11119807,0.00021848,2]
[311275957,1705009953411,155.0,0.00019669,2]
[311275958,1705009962032,50499.59616864,0.00021854,2]
[311275959,1705009971438,251.44112676,0.00019663,2]
[311275960,1705009978359,50499.59616864,0.00021848,2]
[311275961,1705009992247,-446.92630179,0.00022759,2]
[311275962,1705009992267,-4346.25511422,0.0002276,2]
[311275963,1705009992287,-161.55713034,0.0002276,2]
[311275964,1705009992306,-559.88627078,0.00022761,2]
[311275965,1705009992326,-1254.5494995,0.00022761,2]
[311275966,1705009992347,-360.39878748,0.00022762,2]
[311275967,1705009992366,-232.87142975,0.00022762,2]
[311275968,1705009992386,-285.00277987,0.00022762,2]
[311275969,1705009992406,-493.91108141,0.00022762,2]
[311275970,1705009992425,-155.0,0.00022763,2]
[311275971,1705009992445,-1000.0,0.00022763,2]
[311275972,1705009992464,-342.5228617,0.00022763,2]
[311275973,1705009992487,-2616.61714692,0.00022763,2]
[311275974,1705009992507,-3186.46864652,0.00022763,2]
[311275975,1705009992527,-5325.90748391,0.00022763,2]
[311275976,1705009992546,-765.63129887,0.00022764,2]
[311275977,1705009992566,-2316.58936716,0.00022764,2]
[311275978,1705009992586,-418.95927661,0.00022765,2]
[311275979,1705009992605,-23875.3217526,0.00022768,2]
[311275980,1705009992625,-155.0,0.00022769,2]
[311275981,1705009992646,-278.6625534,0.000229,2]
[311275982,1705009992665,-633.07379465,0.000229,2]
[311275983,1705009992689,-331.94836294,0.000229,2]
[311275984,1705009992710,-18227.93905958,0.00022998,2]
[311275985,1705009994048,13487.89956145,0.00021848,2]
[311275986,1705009996863,2965.1826,0.00022427,2]
[311275987,1705010004390,1000.0,0.00022308,2]
[311275988,1705010006720,559.88627078,0.00020468,2]
[311275989,1705010007983,181.18213116,0.00020468,2]
[311275990,1705010008786,506.92338725,0.00018398,2]
[311275991,1705010009285,841.98904876,0.00022078,2]
[311275992,1705010016924,18892.58922034,0.00022308,2]
[311275994,1705010018743,1472.29043153,0.00022308,2]
[311275997,1705010022403,1000.0,0.00022308,2]
[311275998,1705010024712,559.88627078,0.00020468,2]
[311275999,1705010040419,1000.0,0.00022308,2]
[311276001,1705010044712,661.88379455,0.00020468,2]
[311276002,1705010048037,-164.61605207,0.00022759,2]
[311276003,1705010048058,-300.0,0.00022759,2]
[311276004,1705010048079,-150.0,0.00022759,2]
[311276005,1705010048100,-2472.30301271,0.0002276,2]
[311276006,1705010048123,-7146.79416159,0.0002276,2]
[311276007,1705010048144,-25490.28677363,0.00022761,2]
[311276008,1705010064414,1000.0,0.00022308,2]
[311276009,1705010064541,289.17549754,0.00022,4]
[311276019,1705010064885,14588.02744249,0.00022,2]
[311276022,1705010064910,26098.4416995,0.00022,2]
[311276023,1705010066932,629.00543889,0.00022308,2]
[311276024,1705010069934,150.0,0.00022,2]
[311276025,1705010109172,3186.46864652,0.00022078,2]
[311276026,1705010112429,1000.0,0.00022308,2]
[311276027,1705010124187,850.81888592,0.00022308,4]
[311276028,1705010146147,850.81888592,0.00022308,4]
[311276062,1705010168134,850.81888592,0.00022308,4]
[311276063,1705010168224,2705.0,0.00022484,2]
[311276064,1705010184140,447.10455857,0.00022484,4]
[311276066,1705010191436,6711.83,0.00022426,2]
[311276067,1705010196487,663.19,0.00022426,2]
[311276069,1705010214202,1000.0,0.00022342,2]
[311276070,1705010219069,542.35,0.00022342,2]
[311276075,1705010230370,150.0,0.00022283,2]
[311276077,1705010248412,866.7,0.00022394,2]
[311276078,1705010261938,250.0,0.00022226,2]
[311276079,1705010267145,200.0,0.00022124,2]
[311276085,1705010309611,228.98,0.00022178,2]
[311276086,1705010314204,6119.1,0.00022178,2]
[311276088,1705010322529,634.86,0.00022124,2]
[311276091,1705010356708,753.86,0.000202,2]
[311276092,1705010357236,753.86,0.00022464,2]
[311276094,1705010383056,176.05,0.00022,2]
[311276095,1705010392966,500.0,0.00022,2]
[311276097,1705010394712,2209.43,0.00021997,2]
[311276098,1705010398116,256.42,0.00022,2]
[311276099,1705010399410,494.27545463,0.00022137,2]
[311276100,1705010401594,343.73,0.00021969,2]
[311276101,1705010404533,737.14,0.00021969,2]
[311276102,1705010413206,200.0,0.00021949,2]
[311276103,1705010418013,4333.41,0.00021949,2]
[311276105,1705010422769,750.0,0.00021977,2]
[311276107,1705010437076,500.0,0.000192,2]
[311276109,1705010451193,1852.42,0.00021949,2]
[311276110,1705010453091,345.16,0.00022114,2]
[311276111,1705010453325,345.16,0.00022174,2]
[311276112,1705010453532,345.16,0.00022235,2]
[311276113,1705010453733,345.16,0.00022296,2]
[311276114,1705010453941,345.16,0.00022356,2]
[311276115,1705010454169,345.16,0.00022417,2]
[311276116,1705010454392,345.16,0.00022478,2]
[311276120,1705010478830,174.71,0.00021834,2]
[311276122,1705010500646,1879.68,0.00021859,2]
[311276123,1705010504032,168.42,0.00022077,2]
[311276125,1705010525251,155.02,0.00021843,2]
[311276126,1705010540719,1272.43,0.00021971,2]
[311276130,1705010547038,23900.0,0.00021797,2]
[311276135,1705010559172,500.0,0.00021839,2]
[311276136,1705010560153,1537.53754413,0.00021839,2]
[311276137,1705010560173,462.46245587,0.00021839,2]
[311276140,1705010585719,200.0,0.0002187,2]
[311276141,1705010592571,219.99906844,0.00021869,2]
[311276143,1705010602721,1004.38,0.0002187,2]
[311276145,1705010617087,2705.0,0.00021877,2]
[311276147,1705010644474,200.0,0.0002188,2]
[311276148,1705010645168,231.87,0.0002188,2]
[311276149,1705010646848,546.42,0.00022055,2]
[311276151,1705010657543,150.0,0.0002188,2]
[311276154,1705010694711,250.0,0.0002187,2]
[311276156,1705010710310,297.2656,0.00022418,2]
[311276164,1705010798158,200.0,0.00021799,2]
[311276166,1705010836106,-155.09482443,0.00022505,2]
[311276167,1705010848576,155.07167358,0.00022406,2]
[311276168,1705010853572,155.07167351,0.00022433,2]
[311276169,1705010858569,155.07167351,0.00022461,2]
[311276170,1705010863915,155.07167351,0.00022488,2]
[311276171,1705010864719,160.0,0.0002178,2]
[311276172,1705010878930,519.56,0.00021762,2]
[311276173,1705010885031,200.0,0.00021747,2]
[311276174,1705010891198,1996.88,0.00021924,2]
[311276175,1705010895029,35.87618158,0.00022501,2]
[311276176,1705010895051,4310.37893264,0.00022501,2]
[311276177,1705010897616,707.07,0.00021711,2]
[311276178,1705010900366,500.78147239,0.00022501,2]
[311276179,1705010911885,4481.76959497,0.00022501,2]
[311276180,1705010911906,6060.13290327,0.00022501,2]
[311276181,1705010911932,160.11,0.00021701,2]
[311276182,1705010915639,174.71,0.00021837,2]
[311276183,1705010917983,1852.42,0.00021711,2]
[311276184,1705010921375,155.0,0.00022501,2]
[311276185,1705010928545,1597.62709673,0.00022501,2]
[311276186,1705010928566,1000.0,0.00022501,2]
[311276187,1705010928587,1000.0,0.00022501,2]
[311276188,1705010928607,1000.0,0.00022501,2]
[311276189,1705010931026,-1000.0,0.00022501,2]
[311276190,1705010931713,-1000.0,0.00022501,2]
[311276191,1705010932022,-1000.0,0.00022501,2]
[311276192,1705010932361,-1000.0,0.00022501,2]
[311276193,1705010932723,-1000.0,0.00022501,2]
[311276194,1705010937803,1254.5494995,0.000225,2]
[311276195,1705010941710,300.0,0.000225,2]
[311276196,1705010942073,150.0,0.000225,2]
[311276198,1705010948425,4697.23814042,0.000225,2]
[311276199,1705010954741,-150.0,0.00022501,2]
[311276200,1705010955110,-150.0,0.00022501,2]
[311276201,1705010955536,-150.0,0.00022501,2]
[311276202,1705010955830,-150.0,0.00022501,2]
[311276203,1705010956177,-78.57068135,0.00022501,2]
[311276204,1705010956201,-71.42931865,0.00022501,2]
[311276205,1705010956885,-150.0,0.00022501,2]
[311276206,1705010958853,939.84,0.00021732,2]
[311276207,1705010963001,224.35,0.00021895,2]
[311276208,1705010963231,224.35,0.00021955,2]
[311276209,1705010963644,224.35,0.00022015,2]
[311276210,1705010963866,224.35,0.00022075,2]
[311276211,1705010964082,224.35,0.00022135,2]
[311276212,1705010964289,224.35,0.00022195,2]
[311276213,1705010964506,224.35,0.00022255,2]
[311276214,1705010964743,224.35,0.00022315,2]
[311276215,1705010964973,224.35,0.00022375,2]
[311276216,1705010965187,224.35,0.00022435,2]
[311276217,1705010965423,224.35,0.00022495,2]
[311276221,1705010998608,176.05,0.00022,2]
[311276231,1705011006326,2965.1826,0.00022403,2]
[311276232,1705011007884,500.0,0.00022,2]
[311276233,1705011008321,1254.5494995,0.000225,2]
[311276234,1705011014314,2000.0,0.00021728,2]
[311276235,1705011020781,1820.77162478,0.00022085,2]
[311276239,1705011024358,500.0,0.00021728,2]
[311276245,1705011025892,200.0,0.00021728,2]
[311276268,1705011031824,-1295.880596,0.00022501,2]
[311276269,1705011031837,-601.122,0.00022501,2]
[311276270,1705011031849,-550.0,0.00022501,2]
[311276271,1705011031861,-12915.16254165,0.00022501,2]
[311276272,1705011031870,-155.07167351,0.00022516,2]
[311276273,1705011031880,-1251.07824804,0.00022525,2]
[311276274,1705011031890,-762.26,0.00022538,2]
[311276275,1705011031900,-155.07167351,0.00022543,2]
[311276276,1705011031910,-176.05,0.00022548,2]
[311276277,1705011031920,-815.2136113,0.00022548,2]
[311276278,1705011031929,-224.35,0.00022555,2]
[311276279,1705011031939,-155.07167351,0.00022571,2]
[311276280,1705011031949,-150.99,0.00022571,2]
[311276281,1705011031958,-155.07167351,0.00022598,2]
[311276282,1705011031968,-814.78,0.00022599,2]
[311276283,1705011031977,-1958.21,0.00022599,2]
[311276284,1705011031987,-499.99,0.00022599,2]
[311276285,1705011031997,-224.35,0.00022615,2]
[311276286,1705011032007,-155.07167351,0.00022626,2]
[311276287,1705011032016,-155.07167351,0.00022653,2]
[311276288,1705011032026,-302.96537039,0.00022654,2]
[311276289,1705011032036,-289.9683,0.00022661,2]
[311276290,1705011032045,-224.35,0.00022676,2]
[311276291,1705011032055,-155.07167351,0.0002268,2]
[311276292,1705011032064,-707.07,0.00022689,2]
[311276293,1705011032074,-403.25059385,0.0002269,2]
[311276294,1705011032084,-155.07167351,0.00022708,2]
[311276295,1705011032093,-155.07167351,0.00022735,2]
[311276296,1705011032103,-224.35,0.00022736,2]
[311276298,1705011032113,-74.25478536,0.00022745,2]
[311276301,1705011032137,-299.84,0.00022745,2]
[311276304,1705011032151,-29.15580848,0.00022745,2]
[311276306,1705011032161,-765.63129887,0.0002276,2]
[311276308,1705011032170,-884.44,0.0002276,2]
[311276310,1705011032180,-7407.36299805,0.00022761,2]
[311276312,1705011032189,-2825.40838862,0.00022761,2]
[311276314,1705011032199,-5240.02,0.00022761,2]
[311276316,1705011032208,-326.39,0.00022761,2]
[311276318,1705011032217,-404.27,0.00022761,2]
[311276320,1705011032227,-155.07167351,0.00022763,2]
[311276322,1705011032237,-169.58779483,0.00022768,2]
[311276324,1705011032246,-526.49411413,0.00022768,2]
[311276326,1705011032257,-1253.52383434,0.00022768,2]
[311276328,1705011032267,-493.68361252,0.00022768,2]
[311276331,1705011032277,-2547.93785271,0.00022769,2]
[311276333,1705011032289,-279.69657276,0.00022769,2]
[311276335,1705011032309,-1681.46954766,0.00022769,2]
[311276336,1705011032318,-220.60195592,0.0002277,2]
[311276337,1705011032333,-5120.32829082,0.0002277,2]
[311276338,1705011032379,-576.52518338,0.0002277,2]
[311276339,1705011032390,-288.94234682,0.0002277,2]
[311276340,1705011032402,-1682.8704383,0.0002277,2]
[311276342,1705011032425,-1692.26572143,0.0002277,2]
[311276343,1705011032436,-2310.99156271,0.0002277,2]
[311276346,1705011032448,-1270.173871,0.0002277,2]
[311276370,1705011037923,-6571.10270163,0.0002277,2]
[311276371,1705011037984,-3871.13371545,0.0002277,2]
[311276372,1705011037996,-2301.1932,0.0002277,2]
[311276373,1705011038010,-45137.87101254,0.0002277,2]
[311276374,1705011038019,-155.07167351,0.0002279,2]
[311276375,1705011038029,-224.35,0.00022796,2]
[311276376,1705011038039,-188.48790045,0.00022798,2]
[311276377,1705011038048,-306.97180835,0.00022799,2]
[311276378,1705011038058,-182.77491546,0.00022799,2]
[311276379,1705011038068,-406.55,0.000228,2]
[311276380,1705011038077,-165476.1374,0.000228,2]
[311276381,1705011038086,-2573.6066,0.000228,2]
[311276382,1705011038095,-403.25059384,0.000228,2]
[311276383,1705011038105,-874.69,0.00022812,2]
[311276384,1705011038114,-155.07167351,0.00022818,2]
[311276385,1705011038123,-363.24809483,0.00022824,2]
[311276386,1705011038132,-155.07167351,0.00022845,2]
[311276387,1705011038141,-363.24809483,0.00022849,2]
[311276388,1705011038151,-224.35,0.00022856,2]
[311276389,1705011038160,-155.07167351,0.00022873,2]
[311276390,1705011038169,-363.24809483,0.00022875,2]
[311276391,1705011038179,-459.5603438,0.00022898,2]
[311276392,1705011038189,-219.99906844,0.00022898,2]
[311276393,1705011038198,-443.37312374,0.00022898,2]
[311276394,1705011038208,-548.66148674,0.00022898,2]
[311276396,1705011038217,-1266.4749,0.000229,2]
[311276398,1705011038226,-6544.00539259,0.000229,2]
[311276399,1705011038237,-188.8314,0.000229,2]
[311276400,1705011038247,-202184.7972,0.000229,2]
[311276401,1705011038256,-7857.13,0.000229,2]
[311276402,1705011038267,-155.07167351,0.000229,2]
[311276404,1705011038277,-363.24809483,0.000229,2]
[311276406,1705011038286,-165.19525943,0.000229,2]
[311276408,1705011038296,-937.45710925,0.000229,2]
[311276411,1705011038305,-185.7750356,0.000229,2]
[311276413,1705011038315,-202.18478344,0.000229,2]
[311276415,1705011038324,-224.35,0.00022916,2]
[311276417,1705011038333,-224.35,0.00022976,2]
[311276420,1705011038343,-562.34035283,0.00022987,2]
[311276422,1705011038352,-20534.25337624,0.00022998,2]
[311276426,1705011038361,-234.75807585,0.00022998,2]
[311276430,1705011038371,-13758.40676925,0.00022998,2]
[311276433,1705011038381,-650.81684476,0.00022998,2]
[311276436,1705011038391,-155.0,0.00022998,2]
[311276438,1705011038400,-155.0,0.00022998,2]
[311276440,1705011038409,-4151.89837258,0.00022998,2]
[311276443,1705011038419,-754.79169806,0.00022998,2]
[311276444,1705011038429,-1093.89750418,0.00022998,2]
[311276448,1705011038439,-242.21483627,0.00022998,2]
[311276451,1705011038448,-3019.56635888,0.00022998,2]
[311276454,1705011038457,-287.48098428,0.00022998,2]
[311276457,1705011038467,-2615.50147157,0.00022998,2]